bitfinex-derivatives/quotes_BNBF0:USTF0_20250908
["timestamp","ask_amount","ask_price","bid_price","bid_amount"]
[1757331807824,1.0190724,880.79,878.95,2.29630005]
[1757331808226,1.0190724,880.81,878.95,2.29630005]
[1757331809327,1.0190724,880.83,878.95,2.29630005]
[1757331809828,0.19810378,880.37,878.95,2.29630005]
[1757331815226,0.19810378,880.37,878.07,2.5379779]
[1757331815227,0.19810378,880.37,879.01,2.29630005]
[1757331816029,0.19810378,880.37,879.05,2.29630005]
[1757331818928,0.19810378,880.37,879.06,1.5279934]
[1757331819130,0.19810378,880.37,879.1,2.29630005]
[1757331819932,0.19810378,880.37,879.11,2.29630005]
[1757331820230,0.19810378,880.37,879.12,2.29630005]
[1757331820433,0.19810378,880.37,879.18,2.29630005]
[1757331824334,0.19810378,880.37,879.18,0.76830665]
[1757331826441,0.19810378,880.37,879.17,0.76830665]
[1757331826737,0.19810378,880.37,879.18,0.76830665]
[1757331835646,0.19810378,880.37,879.17,0.76830665]
[1757331836952,0.19810378,880.37,879.17,1.78864265]
[1757331840455,0.19810378,880.37,879.17,3.31663605]
[1757331840949,0.19810378,880.37,879.17,1.78864265]
[1757331844657,0.19810378,880.37,879.17,1.020336]
[1757331844854,0.19810378,880.37,879.17,1.78561031]
[1757331846963,0.19810378,880.37,879.17,3.31360371]
[1757331861373,0.19810378,880.37,879.16,3.31360371]
[1757331861568,0.19810378,880.37,879.08,3.31360371]
[1757331862673,0.19810378,880.37,879.07,3.31360371]
[1757331865072,0.19810378,880.37,879.01,3.31360371]
[1757331870877,0.19810378,880.37,879.02,3.31360371]
[1757331899399,0.19810378,880.37,879.05,3.31360371]
[1757331899598,0.19810378,880.37,879.12,3.31360371]
[1757331901096,0.19810378,880.37,879.14,3.31360371]
[1757331902102,0.19810378,880.37,879.13,3.31360371]
[1757331905606,0.19810378,880.37,879.14,3.31360371]
[1757331923423,0.19810378,880.37,879.18,3.31360371]
[1757331923624,0.19810378,880.37,879.19,3.31360371]
[1757331925227,0.19810378,880.37,879.2,3.31360371]
[1757331931631,0.19810378,880.37,879.19,3.31360371]
[1757331931833,0.19810378,880.37,879.2,3.31360371]
[1757331938631,0.19810378,880.37,879.21,3.31360371]
[1757331941741,0.19810378,880.37,879.63,3.31360371]
[1757331941942,0.19810378,880.37,879.7,3.31360371]
[1757331943437,0.19810378,880.37,879.7,1.78561031]
[1757331944338,0.19810378,880.37,879.8,3.31360371]
[1757331944540,0.19810378,880.37,879.82,3.31360371]
[1757331956146,0.19810378,880.37,879.81,3.31360371]
[1757331956346,0.19810378,880.37,879.83,1.78561031]
[1757331956646,0.19810378,880.37,879.94,1.78561031]
[1757331957144,0.19810378,880.37,879.94,3.31360371]
[1757331958045,0.19810378,880.37,879.93,3.31360371]
[1757331959551,0.19810378,880.37,879.94,3.31360371]
[1757331959847,0.19810378,880.37,879.94,1.78561031]
[1757331966256,0.19810378,880.37,879.94,3.31360371]
[1757331968355,0.19810378,880.37,879.95,3.31360371]
[1757331974665,0.19810378,880.37,879.95,2.5483294]
[1757331974862,0.19810378,880.37,879.95,3.308129]
[1757331980062,0.19810378,880.37,879.95,1.7801356]
[1757331982063,0.19810378,880.37,879.97,1.7801356]
[1757331982269,0.19810378,880.37,880.02,1.7801356]
[1757331983365,0.19810378,880.37,880.13,3.308129]
[1757331983670,0.19810378,880.37,880.16,3.308129]
[1757331984370,0.19810378,880.37,880.16,1.7801356]
[1757331984568,0.19810378,880.37,880.1,1.7801356]
[1757331988973,0.19810378,880.37,880.06,1.7801356]
[1757331989578,0.19810378,880.37,880.06,1.020336]
[1757331989775,0.19810378,880.37,880.06,1.78108205]
[1757331991576,0.19810378,880.37,880.06,3.30907545]
[1757331994978,0.19810378,880.37,880.0,1.78108205]
[1757331995279,0.19810378,880.37,879.91,3.30907545]
[1757331995679,0.19810378,880.37,879.88,3.30907545]
[1757331996081,0.19810378,880.37,879.89,1.5279934]
[1757331996279,0.19810378,880.37,879.88,3.30907545]
[1757331999180,0.19810378,880.37,879.83,3.30907545]
[1757332005591,0.19810378,880.37,879.83,3.31489248]
[1757332009895,1.0190724,881.53,879.83,3.31489248]
[1757332010100,0.19791788,880.24,879.83,3.31489248]
[1757332010299,1.0190724,881.51,879.83,3.31489248]
[1757332010698,0.19791901,880.14,879.83,3.31489248]
[1757332011001,1.0190724,881.51,879.83,3.31489248]
[1757332011200,0.19791901,881.1,879.83,3.31489248]
[1757332011400,0.19791901,881.1,879.82,3.31489248]
[1757332011902,0.19791901,881.1,879.81,3.31489248]
[1757332013504,0.19791901,881.1,879.76,3.31489248]
[1757332016006,0.19791901,881.1,879.91,3.31489248]
[1757332017103,0.19791901,881.1,879.97,3.31489248]
[1757332027213,0.19791901,881.1,879.97,2.5483294]
[1757332027509,0.19791901,881.1,879.97,2.5490161]
[1757332028013,0.19791901,881.1,879.97,3.31478317]
[1757332028510,0.19791901,881.1,879.97,2.5490161]
[1757332028816,0.19791901,881.1,879.97,3.31473083]
[1757332029314,0.19791901,881.1,880.02,3.31473083]
[1757332030915,0.19791901,881.1,880.03,3.31473083]
[1757332031113,0.19791901,881.1,880.1,3.31473083]
[1757332032314,0.19791901,881.1,880.12,3.31473083]
[1757332034615,0.19791901,881.1,880.13,3.31473083]
[1757332034918,0.19791901,881.1,880.18,3.31473083]
[1757332037822,0.19791901,881.1,880.22,3.31473083]
[1757332043029,0.19791901,881.1,880.21,3.31473083]
[1757332043331,0.19791901,881.1,880.22,3.31473083]
[1757332048436,0.19791901,881.1,880.22,3.31237823]
[1757332052234,0.19791901,881.1,880.21,3.31237823]
[1757332052838,0.19791901,881.1,880.2,3.31237823]
[1757332066949,0.19791901,881.1,880.21,3.31237823]
[1757332070054,0.19791901,881.1,880.2,3.31237823]
[1757332071854,0.19791901,881.1,880.23,3.31237823]
[1757332072057,0.19791901,881.1,880.25,3.31237823]
[1757332078158,0.19791901,881.1,880.28,3.31237823]
[1757332078560,0.19791901,881.1,880.28,1.78438483]
[1757332078861,0.19791901,881.1,880.38,1.78438483]
[1757332079064,0.19791901,881.1,880.41,1.78438483]
[1757332079563,0.19791901,881.1,880.42,1.78438483]
[1757332085165,0.19791901,881.1,878.37,3.5531691]
[1757332085166,0.19791901,881.1,880.41,1.78438483]
[1757332088468,0.19791901,881.1,880.41,3.31237823]
[1757332097475,0.19791901,881.1,880.42,3.31237823]
[1757332097675,0.19791901,881.1,880.5,3.31237823]
[1757332098376,0.19791901,881.1,880.51,3.31237823]
[1757332099673,0.19791901,881.1,880.52,3.31237823]
[1757332100674,0.19791901,881.1,880.57,3.31237823]
[1757332100873,0.19791901,881.1,880.64,1.78438483]
[1757332101479,0.19791901,881.1,880.65,1.78438483]
[1757332102179,0.19791901,881.1,880.72,1.78438483]
[1757332102780,0.19791901,881.1,880.72,3.31237823]
[1757332103984,0.19791901,881.1,880.71,3.31237823]
[1757332104179,0.19791901,881.1,880.7,3.31237823]
[1757332104482,0.19791901,881.1,880.64,3.31237823]
[1757332116190,0.19791901,881.1,880.64,1.78438483]
[1757332122300,0.19791901,881.1,880.68,1.78438483]
[1757332123300,0.19791901,881.1,880.69,1.78438483]
[1757332124998,0.19791901,881.1,880.69,3.31237823]
[1757332140110,0.19791901,881.1,880.69,1.78438483]
[1757332140310,0.19791901,881.1,880.69,3.31237823]
[1757332140712,0.19791901,881.1,880.69,1.78438483]
[1757332141913,0.19791901,881.1,880.69,3.31237823]
[1757332142508,0.19791901,881.1,880.69,1.78438483]
[1757332144213,0.19791901,881.1,880.69,3.31237823]
[1757332147509,0.19791901,881.1,880.7,3.31237823]
[1757332148116,0.19791901,881.1,880.69,3.31237823]
[1757332158023,0.19791901,881.1,880.63,3.31237823]
[1757332159026,0.19791901,881.1,880.55,3.31237823]
[1757332159627,0.19791901,881.1,880.65,1.78438483]
[1757332160128,0.19791901,881.1,880.66,1.78438483]
[1757332160326,0.19791901,881.1,880.71,1.78438483]
[1757332160731,0.19791901,881.1,880.71,3.31237823]
[1757332165534,0.19791901,881.1,880.74,3.31237823]
[1757332176148,0.19791901,881.1,880.75,3.31237823]
[1757332185257,0.19791901,881.1,880.74,3.31237823]
[1757332194362,0.19791901,881.1,880.71,3.31237823]
[1757332204965,0.19791901,881.1,880.72,3.31237823]
[1757332205169,0.19791901,881.1,880.74,3.31237823]
[1757332205368,0.19791901,881.1,880.77,3.31237823]
[1757332206371,0.19791901,881.1,880.78,3.31237823]
[1757332208973,0.19791901,881.1,880.78,2.5489862]
[1757332209175,0.19791901,881.1,880.78,3.3135088]
[1757332220978,0.19791901,881.1,880.8,3.3135088]
[1757332221179,0.19791901,881.1,880.84,3.3135088]
[1757332222382,0.19791901,881.1,880.85,3.3135088]
[1757332230892,0.19791901,881.1,880.86,3.3135088]
[1757332231092,0.19791901,881.1,880.9,3.3135088]
[1757332235392,0.19791901,881.1,880.91,3.3135088]
[1757332243201,0.19791901,881.1,880.91,2.5489862]
[1757332243402,0.19791901,881.1,880.91,3.31284101]
[1757332252306,0.19791901,881.1,880.92,3.31284101]
[1757332254510,0.19791901,881.1,880.94,3.31284101]
[1757332269021,0.19791901,881.1,880.93,3.31284101]
[1757332269321,0.19791901,881.1,880.92,3.31284101]
[1757332269521,0.19791901,881.1,880.93,3.31284101]
[1757332269719,0.19791901,881.1,880.94,3.31284101]
[1757332270322,0.19791901,881.1,880.93,3.31284101]
[1757332270719,0.19791901,881.1,880.94,3.31284101]
[1757332277628,0.19791901,881.1,880.96,3.31284101]
[1757332287331,0.19791901,881.1,880.96,5.85081891]
[1757332288436,0.19791901,881.1,880.96,3.31284101]
[1757332296849,0.19791901,881.1,881.02,3.31284101]
[1757332297050,0.19791901,881.1,881.04,3.31284101]
[1757332301954,0.19791901,881.1,881.05,3.31284101]
[1757332302751,0.19791901,881.1,881.09,3.31284101]
[1757332331278,0.19791901,881.1,881.01,1.5279934]
[1757332331579,0.19791901,881.1,879.85,2.5379779]
[1757332331777,0.19791901,881.1,879.86,0.75838349]
[1757332332073,1.0225088,883.6,879.87,0.75838349]
[1757332332274,1.0225088,883.63,881.4,1.78082401]
[1757332332480,0.19762958,882.67,881.4,1.78082401]
[1757332332881,1.0225088,883.55,881.4,1.78082401]
[1757332333281,1.0225088,883.57,881.4,1.78082401]
[1757332333780,1.0225088,883.54,881.4,3.30724461]
[1757332333979,0.19754544,883.03,881.4,3.30724461]
[1757332335477,0.19754544,883.03,881.39,3.30724461]
[1757332335679,0.19754544,883.03,881.38,3.30724461]
[1757332337480,0.19754544,883.03,881.28,3.30724461]
[1757332337884,0.19754544,883.03,881.27,3.30724461]
[1757332343286,0.19754544,883.03,881.27,3.30578796]
[1757332345788,0.19754544,883.03,881.28,3.30578796]
[1757332355091,1.22005424,883.03,881.28,3.30578796]
[1757332356991,1.0225088,883.02,881.28,3.30578796]
[1757332358089,1.0225088,883.01,881.28,3.30578796]
[1757332359792,1.22005424,883.03,881.28,3.30578796]
[1757332360396,0.19754544,883.03,881.28,3.30578796]
[1757332370813,1.22005424,883.03,881.28,3.30578796]
[1757332372209,1.0225088,883.02,881.28,3.30578796]
[1757332372414,0.19754544,883.03,881.28,3.30578796]
[1757332377317,1.22005424,883.03,881.28,3.30578796]
[1757332377519,0.19754544,883.03,881.28,3.30578796]
[1757332378215,1.22005424,883.03,881.28,3.30578796]
[1757332379116,0.19754544,883.03,881.28,3.30578796]
[1757332379317,1.22005424,883.03,881.28,3.30578796]
[1757332380323,0.19754544,883.03,881.28,3.30578796]
[1757332380523,0.19754544,883.03,881.27,3.30578796]
[1757332380819,0.19754544,883.03,881.24,3.30578796]
[1757332387130,0.19754544,883.03,881.25,3.30578796]
[1757332389433,1.0225088,883.0,881.25,3.30578796]
[1757332390335,1.0225088,882.97,881.25,3.30578796]
[1757332390535,1.0225088,882.91,881.25,3.30578796]
[1757332391030,0.19754544,883.03,881.25,3.30578796]
[1757332393333,1.22005424,883.03,881.25,3.30578796]
[1757332394331,1.0225088,883.02,881.25,3.30578796]
[1757332394533,0.19754544,883.03,881.25,3.30578796]
[1757332395334,1.22005424,883.03,881.25,3.30578796]
[1757332396732,1.0225088,883.02,881.25,3.30578796]
[1757332397235,1.0225088,883.01,881.25,3.30578796]
[1757332397435,1.0225088,883.02,881.25,3.30578796]
[1757332399636,1.22005424,883.03,881.25,3.30578796]
[1757332399839,0.19754544,883.03,881.27,3.30578796]
[1757332400840,1.0225088,882.97,881.27,3.30578796]
[1757332401536,1.0225088,882.96,881.27,3.30578796]
[1757332404445,1.0225088,882.93,881.27,3.30578796]
[1757332404947,1.0225088,882.96,881.34,3.30578796]
[1757332406147,1.0225088,882.97,881.34,3.30578796]
[1757332407252,1.0225088,882.98,881.34,3.30578796]
[1757332408048,0.19754544,883.03,881.34,3.30578796]
[1757332408049,1.0225088,882.97,881.34,3.30578796]
[1757332408253,1.0225088,882.98,881.34,3.30578796]
[1757332409754,1.0225088,882.94,881.34,3.30578796]
[1757332410456,1.0225088,882.93,881.34,3.30578796]
[1757332411656,1.0225088,882.94,881.34,3.30578796]
[1757332413058,1.0225088,882.96,881.34,3.30578796]
[1757332413354,1.0225088,882.97,881.34,3.30578796]
[1757332414656,1.0225088,882.94,881.34,3.30578796]
[1757332416356,1.0225088,882.95,881.34,3.30578796]
[1757332418061,0.19754544,883.03,881.34,3.30578796]
[1757332418259,0.19754544,883.03,881.37,3.30578796]
[1757332427164,0.19754544,883.03,881.44,3.30578796]
[1757332429061,0.19754544,883.03,881.45,3.30578796]
[1757332431875,0.19754544,883.03,881.29,1.77936736]
[1757332436468,0.19754544,883.03,881.3,1.77936736]
[1757332437073,0.19754544,883.03,881.3,3.30578796]
[1757332441672,1.0225088,882.99,881.3,3.30578796]
[1757332441873,1.0225088,883.01,881.3,3.30578796]
[1757332442077,1.0225088,883.0,881.3,3.30578796]
[1757332442274,1.0225088,882.99,881.3,3.30578796]
[1757332442774,1.0225088,882.99,881.3,3.30723855]
[1757332443074,1.0225088,883.0,881.31,3.30723855]
[1757332443274,1.0225088,882.99,881.3,3.30723855]
[1757332443577,0.19754544,883.03,881.3,3.30723855]
[1757332444881,0.19754544,883.03,881.31,3.30723855]
[1757332445182,0.19754544,883.03,881.34,3.30723855]
[1757332446379,0.19754544,883.03,881.37,3.30723855]
[1757332446777,1.0225088,883.02,881.37,3.30723855]
[1757332448878,0.19754544,883.03,881.38,3.30723855]
[1757332449075,0.19754544,883.03,881.39,3.30723855]
[1757332449383,0.19754544,883.03,881.56,3.30723855]
[1757332450782,0.19754544,883.03,881.54,3.30723855]
[1757332451476,0.19754544,883.03,881.47,3.30723855]
[1757332451978,0.19754544,883.03,881.46,3.30723855]
[1757332452476,0.19754544,883.03,881.45,3.30723855]
[1757332453082,0.19754544,883.03,881.4,3.30723855]
[1757332453282,0.19754544,883.03,881.35,3.30723855]
[1757332453578,0.19754544,883.03,881.34,3.30723855]
[1757332454783,0.19754544,883.03,881.34,2.5440343]
[1757332454983,0.19754544,883.03,881.34,3.30682031]
[1757332457484,1.22005424,883.03,881.34,3.30682031]
[1757332458282,0.19754544,883.03,881.34,3.30682031]
[1757332462081,0.19754544,883.03,881.33,3.30682031]
[1757332463187,0.19754544,883.03,881.33,3.30711463]
[1757332463788,0.19754544,883.03,881.32,3.30711463]
[1757332463989,0.19754544,883.03,881.3,3.30711463]
[1757332464890,0.19754544,883.03,881.3,3.30764654]
[1757332465486,0.19754544,883.03,880.67,2.5379779]
[1757332465487,1.0225088,882.97,881.26,3.30764654]
[1757332465686,1.0225088,882.98,881.26,3.30764654]
[1757332466286,1.0225088,882.99,881.26,3.30764654]
[1757332467987,1.0225088,882.98,881.26,3.30764654]
[1757332470287,1.0225088,882.99,881.26,3.30764654]
[1757332471093,1.0225088,882.97,881.26,3.30764654]
[1757332472491,1.0225088,882.98,881.27,3.30764654]
[1757332472690,1.0225088,882.97,881.27,3.30764654]
[1757332475604,1.0225088,882.96,881.05,3.30764654]
[1757332476198,1.0225088,882.93,881.05,3.30764654]
[1757332476496,1.0225088,882.94,881.05,3.30764654]
[1757332476694,1.0225088,882.95,881.07,3.30764654]
[1757332477393,1.0225088,882.97,881.07,3.30764654]
[1757332478297,1.0225088,882.94,881.07,3.30764654]
[1757332479296,1.0225088,882.95,881.07,3.30764654]
[1757332480295,1.0225088,882.96,881.07,3.30764654]
[1757332480496,0.19754544,883.03,881.07,3.30764654]
[1757332480497,1.0225088,882.97,881.07,3.30764654]
[1757332481997,1.0225088,882.97,881.08,3.30764654]
[1757332482196,1.0225088,882.98,881.08,3.30764654]
[1757332482497,0.19754544,883.03,881.21,1.78122594]
[1757332484295,0.19754544,883.03,881.23,1.78122594]
[1757332488802,0.19754544,883.03,881.23,3.30764654]
[1757332491200,0.19754544,883.03,881.22,3.30764654]
[1757332491800,1.22005424,883.03,881.22,3.30764654]
[1757332498408,0.19754544,883.03,881.22,3.30764654]
[1757332499608,1.0225088,883.0,881.22,3.30764654]
[1757332501612,1.0225088,882.99,881.22,3.30764654]
[1757332501812,1.0225088,882.97,881.22,3.30764654]
[1757332504813,1.0225088,882.96,881.22,3.30764654]
[1757332507612,0.19754544,883.03,881.22,3.30764654]
[1757332507613,1.0225088,882.93,881.22,3.30764654]
[1757332509414,1.0225088,882.92,881.22,3.30764654]
[1757332509618,1.0225088,882.92,881.23,3.30764654]
[1757332510319,1.0225088,882.91,881.23,3.30764654]
[1757332511218,1.0225088,882.9,881.23,3.30764654]
[1757332511418,1.0225088,882.89,881.23,3.30764654]
[1757332512323,1.0225088,882.88,881.23,3.30764654]
[1757332513024,1.0225088,882.93,881.23,3.30764654]
[1757332513623,0.19754544,883.03,881.45,3.30764654]
[1757332521628,0.19754544,883.03,881.47,3.30764654]
[1757332534041,1.0225088,883.26,881.47,3.30764654]
[1757332534238,1.0225088,883.27,881.48,3.30764654]
[1757332534437,0.1975432,882.65,881.47,3.30764654]
[1757332534637,1.0225088,883.27,881.47,3.30764654]
[1757332534841,0.19754264,882.36,881.47,3.30764654]
[1757332535039,1.0225088,883.27,881.47,3.30764654]
[1757332535340,0.19754264,882.14,881.47,3.30764654]
[1757332535640,1.0225088,883.27,881.47,3.30764654]
[1757332535841,0.19754264,881.98,881.47,3.30764654]
[1757332536241,1.0225088,883.27,881.47,3.30764654]
[1757332536442,0.19754264,881.86,881.47,3.30764654]
[1757332536643,1.0225088,883.27,881.47,3.30764654]
[1757332536939,0.19754264,881.77,881.47,3.30764654]
[1757332537139,1.0225088,883.27,881.47,3.30764654]
[1757332537443,0.19754264,881.7,881.47,3.30764654]
[1757332537940,0.19754264,881.65,881.47,3.30764654]
[1757332540542,0.19754264,881.65,881.42,3.30764654]
[1757332540945,0.19754264,881.65,881.35,3.30764654]
[1757332541848,0.19754264,881.65,881.3,3.30764654]
[1757332544048,0.19754264,881.65,881.25,3.30764654]
[1757332547650,0.19754264,881.65,881.23,3.30764654]
[1757332556057,0.19754264,881.65,881.24,3.30764654]
[1757332557056,0.19754264,881.65,881.23,3.30764654]
[1757332560067,0.19754264,881.65,881.24,3.30764654]
[1757332561865,1.0225088,883.08,881.24,3.30764654]
[1757332563966,1.0225088,883.07,881.24,3.30764654]
[1757332566672,1.0225088,883.06,881.22,3.30764654]
[1757332567070,1.0225088,882.93,881.22,3.30764654]
[1757332567368,1.0225088,883.01,881.22,3.30764654]
[1757332567673,1.0225088,882.92,881.13,3.30764654]
[1757332568372,1.0225088,882.93,881.13,3.30764654]
[1757332569576,1.0225088,882.92,881.13,3.30764654]
[1757332570377,1.0225088,882.9,881.13,3.30764654]
[1757332570975,1.0225088,882.89,881.13,3.30764654]
[1757332575180,1.0225088,882.91,881.14,3.30764654]
[1757332577485,1.0225088,882.88,881.14,3.30764654]
[1757332577685,1.0225088,882.89,881.14,3.30764654]
[1757332577886,0.19761106,882.45,881.14,3.30764654]
[1757332580382,0.19761106,882.45,881.13,3.30764654]
[1757332581186,0.19761106,882.45,881.13,2.5440343]
[1757332581386,0.19761106,882.45,881.13,3.30597462]
[1757332585789,0.19761106,882.45,881.18,1.77955402]
[1757332586988,0.19761106,882.45,881.31,1.77955402]
[1757332587484,0.19761106,882.45,881.31,3.30597462]
[1757332602794,0.19761106,882.45,881.3,3.30597462]
[1757332602992,0.19761106,882.45,881.31,3.30597462]
[1757332603693,0.19761106,882.45,881.3,3.30597462]
[1757332605394,0.19761106,882.45,881.29,3.30597462]
[1757332605698,0.19761106,882.45,881.26,3.30597462]
[1757332607201,0.19761106,882.45,881.24,3.30597462]
[1757332607402,0.19761106,882.45,881.19,3.30597462]
[1757332610502,0.19761106,882.45,881.28,3.30597462]
[1757332645332,0.19761106,882.45,881.26,3.30597462]
[1757332647435,0.19761106,882.45,881.24,3.30597462]
[1757332647836,0.19761106,882.45,881.2,3.30597462]
[1757332656144,0.19761106,882.45,881.21,4.02432728]
[1757332656343,0.19761106,882.45,881.2,3.30597462]
[1757332695579,0.19761106,882.45,881.21,4.02420221]
[1757332695776,0.19761106,882.45,881.21,3.30597462]
[1757332711887,0.19761106,882.45,881.2,3.30597462]
[1757332726093,0.19761106,882.45,881.19,3.30597462]
[1757332729701,0.19761106,882.45,881.14,3.30597462]
[1757332744408,0.19761106,882.45,881.15,4.02374471]
[1757332744614,0.19761106,882.45,881.15,3.30597462]
[1757332778054,1.5286086,883.1,881.15,3.30597462]
[1757332778349,0.19760433,882.13,881.15,3.30597462]
[1757332778553,1.5286086,883.1,881.15,3.30597462]
[1757332778754,0.19760489,882.62,881.15,3.30597462]
[1757332778952,0.19760489,882.62,881.15,3.27597462]
[1757332788858,0.19760489,882.62,881.21,1.77955402]
[1757332790655,0.19760489,882.62,881.22,2.49770027]
[1757332790860,0.19760489,882.62,881.22,1.77955402]
[1757332792559,0.19760489,882.62,881.23,2.4975459]
[1757332792758,0.19760489,882.62,881.23,1.77955402]
[1757332796360,0.19760489,882.62,880.58,2.5379779]
[1757332796361,0.19760489,882.62,881.27,1.77955402]
[1757332796868,0.19760489,882.62,881.33,1.77955402]
[1757332797065,0.19760489,882.62,881.35,1.77955402]
[1757332798963,0.19760489,882.62,881.35,3.30447052]
[1757332800565,0.19760489,882.62,881.39,3.30447052]
[1757332801668,0.19760489,882.62,881.42,3.30447052]
[1757332803567,0.19760489,882.62,881.45,3.30447052]
[1757332804373,0.19760489,882.62,881.47,3.30447052]
[1757332804573,0.19760489,882.62,881.57,3.30447052]
[1757332805072,0.19760489,882.62,881.58,4.02013112]
[1757332805269,0.19760489,882.62,881.58,1.77955402]
[1757332805873,0.19760489,882.62,881.58,3.30447052]
[1757332806977,0.19760489,882.62,881.57,3.30447052]
[1757332807473,0.19760489,882.62,881.53,3.30447052]
[1757332807675,0.19760489,882.62,881.48,3.30447052]
[1757332808077,0.19760489,882.62,881.43,3.30447052]
[1757332809778,0.19760489,882.62,881.44,4.01945005]
[1757332809982,0.19760489,882.62,881.44,3.30447052]
[1757332810377,0.19760489,882.62,881.44,2.5425302]
[1757332810676,0.19760489,882.62,881.44,3.30266901]
[1757332811378,0.19760489,882.62,881.42,3.30266901]
[1757332811882,0.19760489,882.62,881.42,1.77775251]
[1757332813679,0.19760489,882.62,881.43,2.49253072]
[1757332813979,0.19760489,882.62,881.43,1.77775251]
[1757332814484,0.19760489,882.62,881.44,0.71471924]
[1757332814784,0.19760489,882.62,881.44,1.77775251]
[1757332819587,0.19760489,882.62,881.45,2.49226029]
[1757332819790,0.19760489,882.62,881.45,1.77775251]
[1757332820389,0.19760489,882.62,881.44,1.77775251]
[1757332820990,0.19760489,882.62,881.44,3.30266901]
[1757332823090,0.19760489,882.62,881.45,0.71441644]
[1757332823286,0.19760489,882.62,881.45,3.30266901]
[1757332823789,0.19760489,882.62,881.46,4.01706547]
[1757332823990,0.19760489,882.62,881.56,3.30266901]
[1757332834297,0.19760489,882.62,881.59,3.30266901]
[1757332834998,0.19760489,882.62,881.6,4.0157596]
[1757332835197,0.19760489,882.62,881.6,3.30266901]
[1757332839300,0.19760489,882.62,881.6,1.77775251]
[1757332839601,0.19760489,882.62,881.55,3.30266901]
[1757332847008,0.19760489,882.62,881.55,1.77775251]
[1757332852014,0.19760489,882.62,881.55,3.30266901]
[1757332862917,0.19760489,882.62,881.56,4.01771124]
[1757332863115,0.19760489,882.62,881.56,3.30266901]
[1757332874932,0.19760489,882.62,881.55,3.30266901]
[1757332878937,0.19760489,882.62,881.56,4.0187185]
[1757332879136,0.19760489,882.62,881.56,3.30266901]
[1757332884634,0.19760489,882.62,881.55,3.30266901]
[1757332885233,0.19760489,882.62,881.56,4.01940231]
[1757332885435,0.19760489,882.62,881.56,3.30266901]
[1757332885635,0.19760489,882.62,881.55,3.30266901]
[1757332889437,0.19760489,882.62,881.56,4.01950398]
[1757332889636,0.19760489,882.62,881.56,3.30266901]
[1757332895944,0.19760489,882.62,881.55,3.30266901]
[1757332911356,0.19760489,882.62,881.47,3.30266901]
[1757332913955,0.19760489,882.62,881.46,3.30266901]
[1757332914359,0.19760489,882.62,881.45,3.30266901]
[1757332927865,0.19760489,882.62,881.47,3.30266901]
[1757332931965,0.19760489,882.62,881.46,3.30266901]
[1757332943081,0.19760489,882.62,881.45,3.30266901]
[1757332978698,1.5286086,883.22,881.45,3.30266901]
[1757332978899,1.5286086,883.21,881.45,3.30266901]
[1757332979099,0.19755553,882.33,881.45,3.30266901]
[1757332979395,1.5286086,883.21,881.45,3.30266901]
[1757332979600,0.19755609,882.78,881.45,3.30266901]
[1757333021426,0.19755609,882.78,881.46,0.71776014]
[1757333021628,0.19755609,882.78,881.49,3.30266901]
[1757333026842,0.19755609,882.78,881.46,3.30266901]
[1757333027341,0.19755609,882.78,881.41,3.30266901]
[1757333027637,0.19755609,882.78,881.36,3.30266901]
[1757333032351,0.19755609,882.78,881.31,3.30266901]
[1757333040254,0.19755609,882.78,881.3,3.30266901]
[1757333068075,0.19755609,882.78,881.31,4.01947243]
[1757333068273,0.19755609,882.78,881.31,3.30266901]
[1757333085181,0.19755609,882.78,881.34,3.30266901]
[1757333085481,0.19755609,882.78,881.35,2.49548939]
[1757333085781,0.19755609,882.78,881.42,3.30266901]
[1757333091083,0.19755609,882.78,881.41,3.30266901]
[1757333091283,0.19755609,882.78,881.36,3.30266901]
[1757333092194,0.19755609,882.78,881.35,3.30266901]
[1757333092597,0.19755609,882.78,881.33,3.30266901]
[1757333102299,0.19755609,882.78,881.31,3.30266901]
[1757333104901,0.19755609,882.78,881.32,2.49570781]
[1757333105103,0.19755609,882.78,881.32,1.77775251]
[1757333110108,0.19755609,882.78,881.32,3.30266901]
[1757333128122,0.19755609,882.78,881.33,0.71861114]
[1757333128325,0.19755609,882.78,881.46,3.30266901]
[1757333128929,0.19755609,882.78,881.47,0.71830916]
[1757333129126,0.19755609,882.78,881.48,4.02097817]
[1757333129326,0.19755609,882.78,881.7,1.77775251]
[1757333129526,0.19755609,882.78,881.71,2.49536719]
[1757333129734,0.19755609,882.78,881.71,1.77775251]
[1757333130130,0.19755609,882.78,881.72,2.49535075]
[1757333130327,0.19755609,882.78,881.72,1.77775251]
[1757333133829,0.19755609,882.78,881.72,3.30266901]
[1757333136733,0.19755609,882.78,881.77,3.30266901]
[1757333137631,0.19755609,882.78,881.84,3.30266901]
[1757333138533,0.19755609,882.78,881.83,3.30266901]
[1757333139630,0.19755609,882.78,881.84,4.01771825]
[1757333139828,0.19755609,882.78,881.84,3.30266901]
[1757333149235,0.19755609,882.78,881.9,1.77775251]
[1757333157744,0.19755609,882.78,881.9,3.30266901]
[1757333166462,0.19755609,882.78,881.91,2.49032122]
[1757333166662,0.19755609,882.78,881.91,1.77775251]
[1757333167557,0.19755609,882.78,881.9,1.77775251]
[1757333176269,0.19755609,882.78,881.9,3.30266901]
[1757333179668,1.5286086,884.18,881.9,3.30266901]
[1757333179869,0.19743057,882.57,881.9,3.30266901]
[1757333180070,1.5286086,884.18,881.9,3.30266901]